{"text_format":"1","workbook":"xlsx","n_sheets":5,"sheets":["Т.З.","Заказ","Склад","Расчет","Прессовый"],"not_rendered":{"charts":0,"images":0,"macros":1,"external_links":0,"defined_names":0,"comments":0,"pivot_tables":0},"unopened":[],"bounds":{"document_bytes":16777216,"sheet_cells":100000,"rows_first":2000,"rows_last":500,"rows_between":2000,"halvings":0,"cell_chars":16384,"cell_head_chars":4096},"cells_cut":0,"cells_raw":0,"read":"whole","date_system":"1900"}

{"sheet":"Т.З.","index":0,"n_rows":47,"n_cols":3,"rows_kept":47,"cut":false,"hidden":false,"merged":[]}
[]
[null,"После нажатия кнопки Документы на листе ЗАКАЗ должно произойти следующее:"]
[]
[null,"1.","На листе Расчёт есть колонка Закуп. Если в колонке встречается непустая ячейка, то создаётся лист заказа, в нем указывается Наименование заказываемой позиции и количество. Если в колонке встречается ещё одна непустая ячейка, то аналогичным образом в следующей строке вписывается следующая позиция. В результате должен появиться заполненый бланк заказа покупных материалов для отдела снабжения. Если вся колонка пустая - лист не создается."]
[null,"2.","На листе Расчёт есть колонка Производство. Если в колонке встречается непустая ячейка, то создаётся лист заказа на производство, в нем указывается Наименование заказываемой позиции и количество. Если в колонке встречается ещё одна непустая ячейка, то аналогичным образом  в следующей строке вписывается следующая позиция. В результате должен появиться заполненый бланк задания на производство. Если вся колонка пустая - лист не создается."]
[null,"3. ","Для каждого Задания на производство создается лист Требование на склад. В котором указаны наименование и количество требуемого материала и комплектующих."]
[]
[null,null,"В результате мы должны получить комплект заполненых бланков готовых к печати. В них дожны быть ячейки для внесения данных вручную. Остальные ячейки защищены от изменений."]
[]
[]
[]
[null,null,"Шаблон задания на производство:"]
[]
[null,null,"Поля - Узкие"]
[null,null,"Ориентация - Книжная"]
[null,null,"Верхний колонтитул:"]
[null,null,"Шрифт - Calibri"]
[null,null,"Размер шрифта - 12"]
[null,null,"Слева - Задание на производство &[Дата]"]
[null,null,"Центр - &[Лист]"]
[null,null,"Справа - Страница  &[Страница] из &[Страниц]"]
[null,null,"Нижний колонтитул:"]
[null,null,"Шрифт - Calibri"]
[null,null,"Размер шрифта - 12"]
[null,null,"Слева - \nВыдал: \nТехнолог Киреева М.В.\n\nПодпись_________________"]
[null,null,"Центр - \nДата/Время:\n\n\n"]
[null,null,"Справа -\nПринял:\nМастер СергуновА.М.\n\nПодпись_____________________"]
[]
[null,null,"Таблица состоит из 9 столбцов. Количество строк определяется по мере заполнения."]
[null,null,"Шапка - "]
[null,null,"Шрифт - Calibri"]
[null,null,"Размер шрифта - 12"]
[null,null,"Жирный"]
[null,null,"Выровнять посередине"]
[null,null,"Выровнять по центру"]
[null,null,"Активировать перенос текста"]
[null,null,"Толстая внешняя граница"]
[null,null,"Все ячейки защищаемые"]
[null,null,"Столбец 1 - ширина столбца 0,85 см - Значение - №"]
[null,null,"Столбец 2 - ширина 3,49 см - Значение - Наименование"]
[null,null,"Столбец 3 - ширина 4 см - Значение - Обозначение"]
[null,null,"Столбец 4 - ширина 0,85 см - Значение -  Кол"]
[null,null,"Столбец 5 - ширина 0,85 см - Значение - Ед"]
[null,null,"Столбец 6 - ширина 3,89 см - Значение - Дополнения "]
[null,null,"Столбец 7 - ширина 0,85 см - Значение - Гот"]
[null,null,"Столбец 8 - ширина 0,93 см - Значение - Брак"]
[null,null,"Столбец 9 - ширина 3,89 см - Значение - Комментарии"]

{"sheet":"Заказ","index":1,"n_rows":4,"n_cols":2,"rows_kept":4,"cut":false,"hidden":false,"merged":[]}
[]
["Заказ:",10]
[]
["Введите необходимое количество трансформаторов."]

{"sheet":"Склад","index":2,"n_rows":6,"n_cols":5,"rows_kept":6,"cut":false,"hidden":false,"merged":[]}
[]
["Наименование","Кол-во","Доступно","Резерв","Ед. Изм."]
["Трансформатор",5,{"$f":"B3-D3","v":5},null,"шт"]
["Провод",0,{"$f":"B4-D4","v":0},null,"м"]
["Катушка",3,{"$f":"B5-D5","v":3},null,"шт"]
["Опилки",0.2,{"$f":"B6-D6","v":0.2},null,"кг"]

{"sheet":"Расчет","index":3,"n_rows":7,"n_cols":9,"rows_kept":7,"cut":false,"hidden":false,"merged":[[1,5,1,7]]}
[]
[null,null,null,null,null,"Производственные участки"]
["Наименование","Обозначение","Потребность","Наличие","Резерв","Намотка катушек","Прессовый","Электромонтажный","Закупка"]
["Трансформатор","67-85",null,null,null,{"$f":"Заказ!B2","v":10}]
["Провод",321,{"$f":"F4*25","v":250},{"$f":"Склад!C4","v":0},{"$f":"IF(D5>=C5,C5,IF(D5>0,D5,\"\"))","v":""},null,null,null,{"$f":"IF(D5<C5,C5-D5,\"\")","v":250}]
["Катушка",12345,{"$f":"F4*1","v":10},{"$f":"Склад!C5","v":3},3,null,{"$f":"IF(D6<C6,C6-D6,\"\")","v":7}]
["Опилки","мелкие",{"$f":"0.17*G6","v":1.1900000000000002},{"$f":"Склад!C6","v":0.2},0.2,null,null,null,{"$f":"IF(D7<C7,C7-D7,\"\")","v":0.99000000000000021}]

{"sheet":"Прессовый","index":4,"n_rows":2,"n_cols":9,"rows_kept":2,"cut":false,"hidden":false,"merged":[]}
["№ ","Наименование","Обозначение","Кол","Ед","Дополнения","Гот","Брак","Комментарии работника"]
[1,{"$f":"Расчет!A6","v":"Катушка"},{"$f":"Расчет!B6","v":12345},{"$f":"Расчет!G6","v":7},"шт."]